[Event "Early-Titled-Tuesday-Blitz-March-26-2024"]
[Site "Chess.com"]
[Date "2024.03.26"]
[Round "9"]
[White "toog"]
[Black "CFalcons8"]
[Result "1-0"]
[WhiteElo "2633"]
[BlackElo "2404"]
[TimeControl "180+1"]
[EndTime "9:40:14 PDT"]
[Termination "toog won by checkmate"]

1. d4 {[%clk 0:03:00.9]} 1... d5 {[%clk 0:02:59.5]} 2. Nf3 {[%clk 0:02:59.1]}
2... e6 {[%clk 0:03:00.4]} 3. Bf4 {[%clk 0:02:58.5]} 3... Nf6 {[%clk 0:03:01.3]}
4. e3 {[%clk 0:02:58]} 4... c5 {[%clk 0:03:02.2]} 5. Nbd2 {[%clk 0:02:56.3]}
5... Nc6 {[%clk 0:03:02.5]} 6. c3 {[%clk 0:02:55.5]} 6... cxd4 {[%clk
0:03:03.1]} 7. exd4 {[%clk 0:02:54.9]} 7... Nh5 {[%clk 0:03:03.7]} 8. Be3 {[%clk
0:02:53.9]} 8... Bd6 {[%clk 0:03:03.8]} 9. Ne5 {[%clk 0:02:53.4]} 9... g6 {[%clk
0:03:03.4]} 10. g4 {[%clk 0:02:52.7]} 10... Ng7 {[%clk 0:03:03.4]} 11. h4 {[%clk
0:02:51.3]} 11... h5 {[%clk 0:03:00.7]} 12. Bg5 {[%clk 0:02:24.1]} 12... Qc7
{[%clk 0:02:54.7]} 13. Bf6 {[%clk 0:02:22.3]} 13... Kf8 {[%clk 0:02:52.6]} 14.
f4 {[%clk 0:02:08.7]} 14... Be7 {[%clk 0:02:48.3]} 15. Bxe7+ {[%clk 0:02:02.9]}
15... Qxe7 {[%clk 0:02:49.2]} 16. Bd3 {[%clk 0:02:00.7]} 16... hxg4 {[%clk
0:02:49.1]} 17. Qxg4 {[%clk 0:02:01.6]} 17... Nxe5 {[%clk 0:02:47.8]} 18. fxe5
{[%clk 0:01:59.9]} 18... Nf5 {[%clk 0:02:47.8]} 19. Bxf5 {[%clk 0:01:55.3]}
19... exf5 {[%clk 0:02:48.1]} 20. Qf4 {[%clk 0:01:54.9]} 20... g5 {[%clk
0:02:47.5]} 21. Qf2 {[%clk 0:01:53.2]} 21... gxh4 {[%clk 0:02:36.2]} 22. Nf3
{[%clk 0:01:47.3]} 22... h3 {[%clk 0:02:34.9]} 23. Qg3 {[%clk 0:01:36.4]} 23...
f4 {[%clk 0:02:30.5]} 24. Qxf4 {[%clk 0:01:35.7]} 24... Be6 {[%clk 0:02:30.7]}
25. O-O-O {[%clk 0:01:35]} 25... b5 {[%clk 0:02:23.1]} 26. Rdf1 {[%clk
0:01:26.5]} 26... b4 {[%clk 0:02:23]} 27. Ng5 {[%clk 0:01:25.6]} 27... bxc3
{[%clk 0:02:20]} 28. bxc3 {[%clk 0:01:24.6]} 28... Rc8 {[%clk 0:02:16.1]} 29.
Kd2 {[%clk 0:01:24.1]} 29... Rg8 {[%clk 0:02:12]} 30. Nh7+ {[%clk 0:01:19.9]}
30... Kg7 {[%clk 0:02:10.8]} 31. Nf6 {[%clk 0:01:08.2]} 31... Rh8 {[%clk
0:02:06.7]} 32. Rfg1+ {[%clk 0:01:04]} 32... Kf8 {[%clk 0:02:06.3]} 33. Qh6+
{[%clk 0:01:03.9]} 33... Rxh6 {[%clk 0:02:05.1]} 34. Rg8# {[%clk 0:01:03.3]} 1-0

[Event "Early-Titled-Tuesday-Blitz-March-26-2024"]
[Site "Chess.com"]
[Date "2024.03.26"]
[Round "9"]
[White "Philippians46"]
[Black "Bykov_Egor"]
[Result "1-0"]
[WhiteElo "2989"]
[BlackElo "2656"]
[TimeControl "180+1"]
[EndTime "9:40:18 PDT"]
[Termination "Philippians46 won by resignation"]

1. d4 {[%clk 0:03:00.9]} 1... Nf6 {[%clk 0:02:59.7]} 2. Nf3 {[%clk 0:03:01.3]}
2... g6 {[%clk 0:02:57.4]} 3. Bg5 {[%clk 0:03:01.2]} 3... Bg7 {[%clk 0:02:57.3]}
4. Nbd2 {[%clk 0:03:01.7]} 4... d6 {[%clk 0:02:50.6]} 5. c3 {[%clk 0:03:01.7]}
5... O-O {[%clk 0:02:50.1]} 6. e4 {[%clk 0:03:02.4]} 6... c5 {[%clk 0:02:48.3]}
7. dxc5 {[%clk 0:03:03.3]} 7... dxc5 {[%clk 0:02:48.2]} 8. Be2 {[%clk
0:03:03.9]} 8... Qc7 {[%clk 0:02:45.8]} 9. O-O {[%clk 0:03:04]} 9... h6 {[%clk
0:02:23.1]} 10. Bh4 {[%clk 0:03:04.1]} 10... Nh5 {[%clk 0:02:23.1]} 11. Qc2
{[%clk 0:03:04.3]} 11... Nc6 {[%clk 0:02:16.9]} 12. Nc4 {[%clk 0:03:04.5]} 12...
b6 {[%clk 0:01:35.5]} 13. Ne3 {[%clk 0:03:03.7]} 13... e6 {[%clk 0:01:33.2]} 14.
Rad1 {[%clk 0:03:04.3]} 14... Bb7 {[%clk 0:01:25.3]} 15. Rd2 {[%clk 0:03:04.7]}
15... g5 {[%clk 0:01:20.9]} 16. Bg3 {[%clk 0:03:04.7]} 16... Nxg3 {[%clk
0:01:21.1]} 17. hxg3 {[%clk 0:03:05.6]} 17... Rad8 {[%clk 0:01:20.8]} 18. Rfd1
{[%clk 0:02:55]} 18... Rxd2 {[%clk 0:01:20.4]} 19. Rxd2 {[%clk 0:02:55.9]} 19...
Rd8 {[%clk 0:01:20.5]} 20. Qa4 {[%clk 0:02:48]} 20... Rxd2 {[%clk 0:00:42.4]}
21. Nxd2 {[%clk 0:02:48.9]} 21... Bf8 {[%clk 0:00:34.8]} 22. Ba6 {[%clk
0:02:48.1]} 22... Ba8 {[%clk 0:00:33.2]} 23. Ndc4 {[%clk 0:02:47.9]} 23... Be7
{[%clk 0:00:31.3]} 24. Qd1 {[%clk 0:02:45.5]} 24... Ne5 {[%clk 0:00:20.7]} 25.
Nxe5 {[%clk 0:02:41.1]} 25... Qxe5 {[%clk 0:00:21.6]} 26. Qd7 {[%clk 0:02:41.5]}
26... Bf8 {[%clk 0:00:18.3]} 27. Ng4 {[%clk 0:02:39.7]} 27... Qd6 {[%clk
0:00:14.7]} 28. Nf6+ {[%clk 0:02:40.1]} 28... Kh8 {[%clk 0:00:14]} 29. Qxf7
{[%clk 0:02:40]} 1-0

[Event "Early-Titled-Tuesday-Blitz-March-26-2024"]
[Site "Chess.com"]
[Date "2024.03.26"]
[Round "9"]
[White "kidagent"]
[Black "Better_Chess_Faster"]
[Result "1-0"]
[WhiteElo "2323"]
[BlackElo "2177"]
[TimeControl "180+1"]
[EndTime "9:40:26 PDT"]
[Termination "kidagent won by resignation"]

1. e4 {[%clk 0:03:00.9]} 1... d6 {[%clk 0:02:59.2]} 2. d4 {[%clk 0:03:00.5]}
2... Nf6 {[%clk 0:02:59.3]} 3. Nc3 {[%clk 0:03:00.1]} 3... g6 {[%clk 0:02:58.5]}
4. Nf3 {[%clk 0:02:59.1]} 4... Bg7 {[%clk 0:02:57.4]} 5. Bc4 {[%clk 0:02:59.7]}
5... O-O {[%clk 0:02:56.1]} 6. Qe2 {[%clk 0:02:59.1]} 6... Bg4 {[%clk
0:02:52.7]} 7. O-O {[%clk 0:02:57.8]} 7... Nc6 {[%clk 0:02:50]} 8. Be3 {[%clk
0:02:56.6]} 8... e5 {[%clk 0:02:48.7]} 9. d5 {[%clk 0:02:45.1]} 9... Nd4 {[%clk
0:02:48.6]} 10. Bxd4 {[%clk 0:02:44.5]} 10... exd4 {[%clk 0:02:48.6]} 11. Nb5
{[%clk 0:02:42.3]} 11... Re8 {[%clk 0:02:44.1]} 12. Nbxd4 {[%clk 0:02:33]} 12...
Rxe4 {[%clk 0:02:36.1]} 13. Qd3 {[%clk 0:02:29.7]} 13... a6 {[%clk 0:02:09.9]}
14. Rfe1 {[%clk 0:02:22.8]} 14... Qe8 {[%clk 0:01:51.8]} 15. c3 {[%clk
0:02:14.8]} 15... c5 {[%clk 0:01:37.4]} 16. dxc6 {[%clk 0:02:12.5]} 16... bxc6
{[%clk 0:01:37.1]} 17. Rxe4 {[%clk 0:01:54.1]} 17... Nxe4 {[%clk 0:01:35.2]} 18.
Bxf7+ {[%clk 0:01:50.2]} 18... Kxf7 {[%clk 0:01:27.3]} 19. Qxe4 {[%clk
0:01:49.9]} 19... Qxe4 {[%clk 0:01:18.8]} 20. Ng5+ {[%clk 0:01:49.8]} 20... Kg8
{[%clk 0:01:16.4]} 21. Nxe4 {[%clk 0:01:50.7]} 21... c5 {[%clk 0:01:06]} 22. Nc6
{[%clk 0:01:48.1]} 22... Rc8 {[%clk 0:00:38.2]} 23. Ne7+ {[%clk 0:01:47.3]} 1-0

[Event "Early-Titled-Tuesday-Blitz-March-26-2024"]
[Site "Chess.com"]
[Date "2024.03.26"]
[Round "9"]
[White "theoneandonlydaaevik"]
[Black "Irina_Mikhaylova"]
[Result "1-0"]
[WhiteElo "2542"]
[BlackElo "2349"]
[TimeControl "180+1"]
[EndTime "9:40:32 PDT"]
[Termination "theoneandonlydaaevik won by resignation"]

1. d4 {[%clk 0:03:00.9]} 1... Nf6 {[%clk 0:02:59.8]} 2. c4 {[%clk 0:03:00.3]}
2... g6 {[%clk 0:03:00.1]} 3. Nc3 {[%clk 0:02:59.4]} 3... d5 {[%clk 0:03:00.5]}
4. cxd5 {[%clk 0:02:57]} 4... Nxd5 {[%clk 0:03:01.4]} 5. e4 {[%clk 0:02:57.9]}
5... Nxc3 {[%clk 0:03:01.4]} 6. bxc3 {[%clk 0:02:58.8]} 6... Bg7 {[%clk
0:03:01.9]} 7. Bc4 {[%clk 0:02:58.8]} 7... c5 {[%clk 0:03:00.8]} 8. Ne2 {[%clk
0:02:59.2]} 8... O-O {[%clk 0:03:00.5]} 9. Be3 {[%clk 0:02:55.5]} 9... Nc6
{[%clk 0:03:00.3]} 10. O-O {[%clk 0:02:55.5]} 10... Bd7 {[%clk 0:02:59.1]} 11.
Rb1 {[%clk 0:02:53]} 11... a6 {[%clk 0:02:59.1]} 12. Qd2 {[%clk 0:02:43.3]}
12... b5 {[%clk 0:02:47.4]} 13. Bd3 {[%clk 0:02:42.1]} 13... cxd4 {[%clk
0:02:41.6]} 14. cxd4 {[%clk 0:02:43]} 14... Qa5 {[%clk 0:02:40.8]} 15. Qxa5
{[%clk 0:02:13.9]} 15... Nxa5 {[%clk 0:02:41.7]} 16. Bd2 {[%clk 0:02:14]} 16...
Nc6 {[%clk 0:02:15.2]} 17. e5 {[%clk 0:02:06]} 17... Be6 {[%clk 0:01:55.8]} 18.
Be4 {[%clk 0:02:01.3]} 18... Bxa2 {[%clk 0:01:43.5]} 19. Bxc6 {[%clk 0:01:44]}
19... Bxb1 {[%clk 0:01:37]} 20. Bxa8 {[%clk 0:01:43.2]} 20... Bd3 {[%clk
0:01:26.9]} 21. Bf3 {[%clk 0:01:42.4]} 21... Rb8 {[%clk 0:01:25.9]} 22. Rc1
{[%clk 0:01:30.9]} 22... f6 {[%clk 0:01:24.9]} 23. Nf4 {[%clk 0:01:24.2]} 23...
Bc4 {[%clk 0:01:23.7]} 24. Bd5+ {[%clk 0:01:22.2]} 24... Bxd5 {[%clk 0:01:23.1]}
25. Nxd5 {[%clk 0:01:23.1]} 25... fxe5 {[%clk 0:01:19.7]} 26. Nxe7+ {[%clk
0:01:22.8]} 26... Kf7 {[%clk 0:01:19.8]} 27. Nc6 {[%clk 0:01:22.9]} 27... Rb6
{[%clk 0:01:18.2]} 28. d5 {[%clk 0:01:20.9]} 1-0

[Event "Early-Titled-Tuesday-Blitz-March-26-2024"]
[Site "Chess.com"]
[Date "2024.03.26"]
[Round "9"]
[White "zverr1"]
[Black "Knightmare1014"]
[Result "1-0"]
[WhiteElo "2532"]
[BlackElo "2343"]
[TimeControl "180+1"]
[EndTime "9:40:43 PDT"]
[Termination "zverr1 won by checkmate"]

1. e4 {[%clk 0:03:00.9]} 1... c5 {[%clk 0:02:59.9]} 2. Nf3 {[%clk 0:03:00.7]}
2... e6 {[%clk 0:03:00.3]} 3. b3 {[%clk 0:03:00.8]} 3... Nc6 {[%clk 0:02:56.5]}
4. Bb2 {[%clk 0:03:00.1]} 4... d5 {[%clk 0:02:52.5]} 5. Bb5 {[%clk 0:03:00.1]}
5... Bd7 {[%clk 0:02:50.3]} 6. exd5 {[%clk 0:02:58]} 6... exd5 {[%clk
0:02:50.4]} 7. O-O {[%clk 0:02:57.2]} 7... Nf6 {[%clk 0:02:41.9]} 8. Re1+ {[%clk
0:02:54.6]} 8... Be6 {[%clk 0:02:37.2]} 9. Ng5 {[%clk 0:02:44.9]} 9... Be7
{[%clk 0:02:19.4]} 10. Nxe6 {[%clk 0:02:29.4]} 10... fxe6 {[%clk 0:02:19.1]} 11.
Rxe6 {[%clk 0:02:30.1]} 11... O-O {[%clk 0:02:19.1]} 12. Bxc6 {[%clk 0:02:29.1]}
12... bxc6 {[%clk 0:02:19.5]} 13. d3 {[%clk 0:02:20.6]} 13... d4 {[%clk
0:02:19.5]} 14. Qe2 {[%clk 0:02:05.7]} 14... Bd6 {[%clk 0:02:17.7]} 15. Nd2
{[%clk 0:02:01.1]} 15... Nd5 {[%clk 0:02:16.5]} 16. g3 {[%clk 0:01:59.4]} 16...
Rc8 {[%clk 0:02:10.9]} 17. Re1 {[%clk 0:01:52.5]} 17... Bb8 {[%clk 0:02:07.8]}
18. Ne4 {[%clk 0:01:44.1]} 18... Qa5 {[%clk 0:01:59.7]} 19. Ng5 {[%clk
0:01:17.5]} 19... h6 {[%clk 0:01:57.6]} 20. Rxh6 {[%clk 0:00:28.6]} 20... gxh6
{[%clk 0:01:54.5]} 21. Qe6+ {[%clk 0:00:26.2]} 21... Kh8 {[%clk 0:01:51.4]} 22.
Qxh6+ {[%clk 0:00:24.9]} 22... Kg8 {[%clk 0:01:46.3]} 23. Qh7# {[%clk
0:00:25.8]} 1-0

[Event "Early-Titled-Tuesday-Blitz-March-26-2024"]
[Site "Chess.com"]
[Date "2024.03.26"]
[Round "9"]
[White "LileKoridze"]
[Black "manitodeplomo"]
[Result "1/2-1/2"]
[WhiteElo "2460"]
[BlackElo "2635"]
[TimeControl "180+1"]
[EndTime "9:41:03 PDT"]
[Termination "Game drawn by repetition"]

1. d4 {[%clk 0:03:00.9]} 1... Nf6 {[%clk 0:02:51.9]} 2. c4 {[%clk 0:03:00.8]}
2... e6 {[%clk 0:02:52.3]} 3. Nf3 {[%clk 0:03:00.5]} 3... b6 {[%clk 0:02:50.5]}
4. g3 {[%clk 0:03:00.1]} 4... Bb7 {[%clk 0:02:47.6]} 5. Bg2 {[%clk 0:03:00.4]}
5... Be7 {[%clk 0:02:47.9]} 6. O-O {[%clk 0:03:00.2]} 6... O-O {[%clk
0:02:47.3]} 7. Nc3 {[%clk 0:02:59.9]} 7... Ne4 {[%clk 0:02:42.5]} 8. Qc2 {[%clk
0:02:59.4]} 8... Nxc3 {[%clk 0:02:42.2]} 9. Qxc3 {[%clk 0:03:00.3]} 9... Be4
{[%clk 0:02:37.9]} 10. Ne1 {[%clk 0:02:58.3]} 10... Bxg2 {[%clk 0:02:36.7]} 11.
Nxg2 {[%clk 0:02:59.2]} 11... d5 {[%clk 0:02:22.1]} 12. cxd5 {[%clk 0:02:59]}
12... exd5 {[%clk 0:02:20.1]} 13. Bf4 {[%clk 0:02:58]} 13... Bd6 {[%clk
0:02:15.2]} 14. Rac1 {[%clk 0:02:55.5]} 14... c6 {[%clk 0:02:14.1]} 15. Rfe1
{[%clk 0:02:53.8]} 15... Re8 {[%clk 0:02:13.8]} 16. Qc2 {[%clk 0:02:51.8]} 16...
Qd7 {[%clk 0:02:10.8]} 17. e4 {[%clk 0:02:51.7]} 17... dxe4 {[%clk 0:02:10.5]}
18. Rxe4 {[%clk 0:02:51.6]} 18... Rc8 {[%clk 0:02:00.1]} 19. Rce1 {[%clk
0:02:49.2]} 19... Bf8 {[%clk 0:01:55.6]} 20. Bxb8 {[%clk 0:02:14.6]} 20... Raxb8
{[%clk 0:01:53.1]} 21. Nf4 {[%clk 0:02:15]} 21... c5 {[%clk 0:01:47.2]} 22. d5
{[%clk 0:02:13.7]} 22... b5 {[%clk 0:01:44.8]} 23. b3 {[%clk 0:02:06.5]} 23...
Qd6 {[%clk 0:01:33.4]} 24. Qe2 {[%clk 0:01:56.4]} 24... a6 {[%clk 0:01:24.4]}
25. Qg4 {[%clk 0:01:56.1]} 25... g6 {[%clk 0:01:19.2]} 26. Qg5 {[%clk
0:01:42.9]} 26... Bg7 {[%clk 0:01:07.4]} 27. Qe7 {[%clk 0:01:28.4]} 27... Bf8
{[%clk 0:00:55.5]} 28. Qg5 {[%clk 0:01:22.4]} 28... Bg7 {[%clk 0:00:50]} 29. Qe7
{[%clk 0:01:22.3]} 29... Bf8 {[%clk 0:00:43.5]} 30. Qg5 {[%clk 0:01:22.3]}
1/2-1/2

[Event "Early-Titled-Tuesday-Blitz-March-26-2024"]
[Site "Chess.com"]
[Date "2024.03.26"]
[Round "9"]
[White "cthulhuuu"]
[Black "CrushingKings"]
[Result "0-1"]
[WhiteElo "2419"]
[BlackElo "2577"]
[TimeControl "180+1"]
[EndTime "9:41:10 PDT"]
[Termination "CrushingKings won by resignation"]

1. e4 {[%clk 0:03:00]} 1... g6 {[%clk 0:03:00.1]} 2. d4 {[%clk 0:03:00.2]} 2...
Bg7 {[%clk 0:03:00.3]} 3. Nc3 {[%clk 0:03:00.7]} 3... c6 {[%clk 0:03:00.7]} 4.
f4 {[%clk 0:03:00.7]} 4... d5 {[%clk 0:03:01]} 5. e5 {[%clk 0:03:00.6]} 5... Nh6
{[%clk 0:03:01.7]} 6. Nf3 {[%clk 0:03:00.6]} 6... Bg4 {[%clk 0:03:00.1]} 7. h3
{[%clk 0:02:59.1]} 7... Bxf3 {[%clk 0:03:00.5]} 8. Qxf3 {[%clk 0:02:59.7]} 8...
f6 {[%clk 0:02:56.1]} 9. g4 {[%clk 0:02:47.2]} 9... fxe5 {[%clk 0:02:53.6]} 10.
fxe5 {[%clk 0:02:47.3]} 10... e6 {[%clk 0:02:49]} 11. Be3 {[%clk 0:02:43.1]}
11... c5 {[%clk 0:02:40.9]} 12. Bb5+ {[%clk 0:02:39]} 12... Nc6 {[%clk
0:02:39.9]} 13. dxc5 {[%clk 0:02:11.7]} 13... Nf7 {[%clk 0:02:31]} 14. O-O-O
{[%clk 0:02:01.3]} 14... O-O {[%clk 0:02:29.8]} 15. Qe2 {[%clk 0:01:40.8]} 15...
Nfxe5 {[%clk 0:02:29]} 16. h4 {[%clk 0:01:26.8]} 16... Qa5 {[%clk 0:02:13.4]}
17. Bd4 {[%clk 0:01:12.3]} 17... Nxd4 {[%clk 0:02:09]} 18. Rxd4 {[%clk
0:01:13.2]} 18... a6 {[%clk 0:02:08.8]} 19. Bd7 {[%clk 0:00:32.5]} 19... Nxd7
{[%clk 0:02:07.6]} 20. Qxe6+ {[%clk 0:00:32.6]} 20... Kh8 {[%clk 0:01:49.6]} 21.
h5 {[%clk 0:00:32.8]} 21... Nxc5 {[%clk 0:01:35.3]} 22. hxg6 {[%clk 0:00:28]}
22... Nxe6 {[%clk 0:01:34.7]} 23. Rxh7+ {[%clk 0:00:23]} 23... Kg8 {[%clk
0:01:34.5]} 24. Rxd5 {[%clk 0:00:23.9]} 24... Rf1+ {[%clk 0:01:31.5]} 25. Kd2
{[%clk 0:00:23]} 25... Bxc3+ {[%clk 0:01:31.3]} 0-1

[Event "Early-Titled-Tuesday-Blitz-March-26-2024"]
[Site "Chess.com"]
[Date "2024.03.26"]
[Round "9"]
[White "WiktoriaPOL"]
[Black "whiteglovethief"]
[Result "1-0"]
[WhiteElo "2308"]
[BlackElo "2496"]
[TimeControl "180+1"]
[EndTime "9:41:17 PDT"]
[Termination "WiktoriaPOL won by checkmate"]

1. c4 {[%clk 0:02:56.3]} 1... e6 {[%clk 0:02:55]} 2. Nc3 {[%clk 0:02:51.5]} 2...
d5 {[%clk 0:02:55.1]} 3. d4 {[%clk 0:02:50.6]} 3... a6 {[%clk 0:02:52.3]} 4. Nf3
{[%clk 0:02:48.4]} 4... dxc4 {[%clk 0:02:51.3]} 5. e4 {[%clk 0:02:47.9]} 5... b5
{[%clk 0:02:51.4]} 6. a4 {[%clk 0:02:47.7]} 6... b4 {[%clk 0:02:47.6]} 7. Na2
{[%clk 0:02:47.2]} 7... Bb7 {[%clk 0:02:46.1]} 8. e5 {[%clk 0:02:33]} 8... Qd5
{[%clk 0:02:31.1]} 9. Bd2 {[%clk 0:02:20.7]} 9... a5 {[%clk 0:02:18.4]} 10. Rc1
{[%clk 0:02:11.7]} 10... c3 {[%clk 0:02:17.4]} 11. bxc3 {[%clk 0:01:59.5]} 11...
Qxa2 {[%clk 0:02:16.8]} 12. cxb4 {[%clk 0:01:47.7]} 12... axb4 {[%clk
0:02:15.2]} 13. Bc4 {[%clk 0:01:31.5]} 13... Qa3 {[%clk 0:01:50.7]} 14. Ra1
{[%clk 0:00:25.7]} 14... Qb2 {[%clk 0:01:49.9]} 15. Rb1 {[%clk 0:00:09]} 15...
Bxf3 {[%clk 0:01:47.1]} 16. Qxf3 {[%clk 0:00:05.7]} 16... Qxb1+ {[%clk 0:01:47]}
17. Ke2 {[%clk 0:00:05.5]} 17... Qxh1 {[%clk 0:01:45.7]} 18. Qxa8 {[%clk
0:00:05.4]} 18... Be7 {[%clk 0:01:31.4]} 19. Qxb8+ {[%clk 0:00:05.1]} 19... Bd8
{[%clk 0:01:31.4]} 20. Bb5+ {[%clk 0:00:04.7]} 20... Ke7 {[%clk 0:01:24.7]} 21.
Bxb4+ {[%clk 0:00:05]} 21... c5 {[%clk 0:01:24.4]} 22. Bxc5# {[%clk 0:00:05.4]}
1-0

[Event "Early-Titled-Tuesday-Blitz-March-26-2024"]
[Site "Chess.com"]
[Date "2024.03.26"]
[Round "9"]
[White "AjedrezenMadrid"]
[Black "Bada_norovsambuu"]
[Result "1-0"]
[WhiteElo "2537"]
[BlackElo "2223"]
[TimeControl "180+1"]
[EndTime "9:41:20 PDT"]
[Termination "AjedrezenMadrid won by resignation"]

1. e4 {[%clk 0:02:59.3]} 1... c6 {[%clk 0:02:59.6]} 2. d4 {[%clk 0:02:58.4]}
2... d5 {[%clk 0:02:59.6]} 3. exd5 {[%clk 0:02:57.6]} 3... cxd5 {[%clk
0:02:59.3]} 4. Bd3 {[%clk 0:02:57.5]} 4... Nf6 {[%clk 0:02:58.5]} 5. c3 {[%clk
0:02:57.1]} 5... Nc6 {[%clk 0:02:55.4]} 6. Bf4 {[%clk 0:02:56.9]} 6... Bg4
{[%clk 0:02:52.3]} 7. Qb3 {[%clk 0:02:56.9]} 7... Qd7 {[%clk 0:02:49.2]} 8. Nd2
{[%clk 0:02:55.4]} 8... e6 {[%clk 0:02:48]} 9. h3 {[%clk 0:02:54.7]} 9... Bh5
{[%clk 0:02:46.6]} 10. Ngf3 {[%clk 0:02:55]} 10... Bd6 {[%clk 0:02:44.8]} 11.
Bxd6 {[%clk 0:02:41.1]} 11... Qxd6 {[%clk 0:02:43.4]} 12. O-O {[%clk 0:02:41.3]}
12... O-O {[%clk 0:02:34.9]} 13. Rfe1 {[%clk 0:02:41.1]} 13... a6 {[%clk
0:02:31.9]} 14. Ne5 {[%clk 0:02:40]} 14... b5 {[%clk 0:02:29.4]} 15. Ndf3 {[%clk
0:02:24.4]} 15... Na5 {[%clk 0:02:11.5]} 16. Qc2 {[%clk 0:02:23]} 16... b4
{[%clk 0:02:08.2]} 17. Ng5 {[%clk 0:02:15.4]} 17... Bg6 {[%clk 0:02:03.3]} 18.
Nxg6 {[%clk 0:02:14.9]} 18... hxg6 {[%clk 0:02:02.1]} 19. Re3 {[%clk 0:01:40.7]}
19... bxc3 {[%clk 0:01:59.2]} 20. bxc3 {[%clk 0:01:40.1]} 20... Nc6 {[%clk
0:01:53.4]} 21. Rae1 {[%clk 0:01:38.2]} 21... Rfc8 {[%clk 0:01:43.1]} 22. Bxg6
{[%clk 0:01:38]} 22... fxg6 {[%clk 0:01:19.4]} 23. Qxg6 {[%clk 0:01:37.3]} 23...
Qf8 {[%clk 0:01:06.8]} 24. Rxe6 {[%clk 0:01:35]} 24... Ne7 {[%clk 0:00:07.5]}
25. Rxe7 {[%clk 0:01:34.6]} 1-0

[Event "Early-Titled-Tuesday-Blitz-March-26-2024"]
[Site "Chess.com"]
[Date "2024.03.26"]
[Round "9"]
[White "FranklinAPalomo"]
[Black "kyuotbi"]
[Result "1-0"]
[WhiteElo "2642"]
[BlackElo "2275"]
[TimeControl "180+1"]
[EndTime "9:41:30 PDT"]
[Termination "FranklinAPalomo won on time"]

1. Nf3 {[%clk 0:03:00.9]} 1... Nf6 {[%clk 0:02:56.5]} 2. g3 {[%clk 0:03:01]}
2... g6 {[%clk 0:02:54.6]} 3. Bg2 {[%clk 0:03:01.7]} 3... Bg7 {[%clk 0:02:54.4]}
4. O-O {[%clk 0:03:02.6]} 4... O-O {[%clk 0:02:52.4]} 5. d3 {[%clk 0:03:03.5]}
5... c5 {[%clk 0:02:49]} 6. Nbd2 {[%clk 0:03:04.4]} 6... Nc6 {[%clk 0:02:49.2]}
7. c3 {[%clk 0:03:05.3]} 7... d5 {[%clk 0:02:48.9]} 8. a4 {[%clk 0:03:06.2]}
8... e5 {[%clk 0:02:45]} 9. e4 {[%clk 0:03:06.7]} 9... Be6 {[%clk 0:02:33.1]}
10. exd5 {[%clk 0:03:03.8]} 10... Bxd5 {[%clk 0:02:29.2]} 11. Re1 {[%clk
0:03:04.4]} 11... Re8 {[%clk 0:02:27.4]} 12. Qc2 {[%clk 0:03:01.7]} 12... Qc7
{[%clk 0:02:21.2]} 13. b3 {[%clk 0:02:53.5]} 13... Rad8 {[%clk 0:02:10.8]} 14.
Bb2 {[%clk 0:02:53.1]} 14... Qd6 {[%clk 0:01:49.8]} 15. Rad1 {[%clk 0:02:50.7]}
15... Re7 {[%clk 0:01:34.2]} 16. Ne4 {[%clk 0:02:47.8]} 16... Bxe4 {[%clk
0:01:10.4]} 17. dxe4 {[%clk 0:02:48.7]} 17... Qc7 {[%clk 0:01:10.4]} 18. Nd2
{[%clk 0:02:48.9]} 18... Red7 {[%clk 0:00:59.2]} 19. Nc4 {[%clk 0:02:45.7]}
19... a6 {[%clk 0:00:57.6]} 20. Ne3 {[%clk 0:02:44.5]} 20... Ne7 {[%clk
0:00:34.6]} 21. Ba3 {[%clk 0:02:36.6]} 21... b6 {[%clk 0:00:31.2]} 22. Qe2
{[%clk 0:02:26.3]} 22... Bh6 {[%clk 0:00:27.4]} 23. Rxd7 {[%clk 0:02:18.7]}
23... Rxd7 {[%clk 0:00:25]} 24. Bc1 {[%clk 0:02:09.5]} 24... Qd8 {[%clk
0:00:22.1]} 25. Qxa6 {[%clk 0:02:06.4]} 25... Bxe3 {[%clk 0:00:15.8]} 26. Bxe3
{[%clk 0:02:07.3]} 26... Ng4 {[%clk 0:00:12.1]} 27. Bg5 {[%clk 0:01:57.8]} 27...
f6 {[%clk 0:00:11.3]} 28. Bc1 {[%clk 0:01:54.3]} 28... Rd1 {[%clk 0:00:10.5]}
29. Qe2 {[%clk 0:01:54.7]} 29... Rxe1+ {[%clk 0:00:09.7]} 30. Qxe1 {[%clk
0:01:55.6]} 30... f5 {[%clk 0:00:07.5]} 31. exf5 {[%clk 0:01:52.4]} 31... gxf5
{[%clk 0:00:05.1]} 32. h3 {[%clk 0:01:52.2]} 32... Nf6 {[%clk 0:00:04.3]} 33.
Qxe5 {[%clk 0:01:51.7]} 33... Qd1+ {[%clk 0:00:04.3]} 34. Kh2 {[%clk 0:01:52.4]}
34... Kf7 {[%clk 0:00:03.3]} 35. Bg5 {[%clk 0:01:50.4]} 1-0